fUSD/lending_fUSD_20240602
["ID","MTS","AMOUNT","RATE_DAILY","PERIOD"]
[328391089,1717324232651,-222.32739603,0.000139,2]
[328391090,1717324232661,-263.46450894,0.000139,2]
[328391091,1717324232673,-1212.18952954,0.000139,2]
[328391092,1717324232685,-309.37405224,0.00013979,2]
[328391093,1717324232697,-104.33544049,0.00013988,2]
[328391096,1717324232713,-546.86876301,0.00013988,2]
[328391099,1717324232730,-48.7957965,0.00013988,2]
[328391101,1717324232744,-5267.5238489,0.00013989,2]
[328391104,1717324232757,-3748.472411,0.00013989,2]
[328391106,1717324232769,-916.0064083,0.00013989,2]
[328391108,1717324232779,-1119.6728295,0.00013989,2]
[328391110,1717324232789,-197.43582361,0.00013989,2]
[328391113,1717324232803,-6827.34329163,0.00013989,2]
[328391137,1717324238321,-19377.42640366,0.00013989,2]
[328391139,1717324238333,-544.95457193,0.00013999,2]
[328391141,1717324238345,-714.76638492,0.00014,2]
[328391156,1717324239667,-513.25684447,0.00014,2]
[328391158,1717324239679,-47587.79999999,0.00014,2]
[328391161,1717324239699,-18381.25463295,0.00014,2]
[328391163,1717324239710,-2702.22081626,0.00014,2]
[328391210,1717324241371,-860.27254028,0.00014,2]
[328391212,1717324241383,-725.0341509,0.00014,2]
[328391214,1717324241394,-4190.83977058,0.00014,2]
[328391223,1717324241460,-886.91361421,0.00014,2]
[328391236,1717324241576,-8413.35640812,0.00014,2]
[328391238,1717324241587,-2986.04436029,0.00014,2]
[328391287,1717324243544,-36907.92129232,0.00014,2]
[328391288,1717324243555,-444.24779552,0.00014,2]
[328391289,1717324243566,-13547.87947996,0.00014,2]
[328391290,1717324243578,-2796.50728471,0.00014,2]
[328391291,1717324243590,-6001.36755,0.00014,2]
[328391292,1717324243601,-259.8,0.00014,2]
[328391293,1717324243613,-1552.4745742,0.00014,2]
[328391294,1717324243624,-1113.63000067,0.00014,2]
[328391295,1717324243649,-1024.42201816,0.00014,2]
[328391296,1717324243664,-950.13545824,0.00014,2]
[328391297,1717324243739,-31527.22120152,0.00014,2]
[328391298,1717324243977,-1192.57468525,0.00014,2]
[328391310,1717324246354,-18568.1092996,0.00014,2]
[328391319,1717324246698,-4587.62418501,0.00014,2]
[328391331,1717324247110,-5511.88176,0.00014,2]
[328391355,1717324312844,475.29,0.0001291,2]
[328391356,1717324336754,1050.48,0.00034633,60]
[328391357,1717324343657,177.91012045,0.00034633,30]
[328391358,1717324345898,258.0,0.00034633,120]
[328391359,1717324358094,2000.0,0.00034633,30]
[328391360,1717324358445,2000.0,0.00034633,30]
[328391361,1717324358823,2000.0,0.00034633,30]
[328391362,1717324359284,2000.0,0.00034633,30]
[328391363,1717324359718,344.199999,0.00034633,30]
[328391364,1717324360453,820.43,0.00034633,60]
[328391365,1717324360542,966.2632,0.00034633,30]
[328391366,1717324360714,2000.0,0.00034633,30]
[328391367,1717324361088,2000.0,0.00034633,30]
[328391368,1717324361541,2000.0,0.00034633,30]
[328391369,1717324362213,2000.0,0.00034633,30]
[328391370,1717324362834,2000.0,0.00034633,30]
[328391371,1717324363033,2000.0,0.00034633,30]
[328391372,1717324363398,1040.6,0.00034633,30]
[328391373,1717324398688,500.0,0.00012806,2]
[328391374,1717324399170,500.0,0.00012807,2]
[328391375,1717324417175,157.62,0.00029808,30]
[328391376,1717324420668,1883.8193,0.00034633,30]
[328391377,1717324424715,527.10433546,0.00034633,90]
[328391378,1717324427836,205.51237624,0.00034633,30]
[328391379,1717324428031,167.86,0.00013512,2]
[328391380,1717324428134,481.04120169,0.00034633,30]
[328391381,1717324429329,359.51837324,0.00034633,30]
[328391382,1717324430828,1512.24319218,0.00034633,30]
[328391383,1717324431694,830.95550197,0.00034633,30]
[328391384,1717324433609,193.4,0.00013566,2]
[328391385,1717324437452,770.69597795,0.00034633,120]
[328391386,1717324440343,695.83616718,0.00034633,30]
[328391387,1717324441152,780.0,0.00034633,120]
[328391388,1717324443346,512.21900005,0.00034633,30]
[328391389,1717324443543,309.65435133,0.00034633,30]
[328391390,1717324444868,721.74137513,0.00034633,30]
[328391391,1717324446264,1163.5424166,0.000118,2]
[328391392,1717324450181,183.35460774,0.00034633,120]
[328391393,1717324453232,847.33681949,0.00011,2]
[328391394,1717324454252,220.09299428,0.00034633,120]
[328391395,1717324456483,442.26580692,0.00034633,30]
[328391396,1717324458089,934.26150031,0.00034633,120]
[328391397,1717324458842,2097.19296759,0.00034633,30]
[328391398,1717324459579,459.37260248,0.00034633,30]
[328391399,1717324460128,366.88513441,0.00034633,30]
[328391400,1717324460607,999.1302438,0.00034633,120]
[328391401,1717324464478,23900.0,0.00013566,2]
[328391402,1717324466518,813.92233927,0.00034633,30]
[328391403,1717324470167,1367.4697135,0.00034633,120]
[328391404,1717324470243,2297.31537791,0.00034633,60]
[328391405,1717324474741,821.70740805,0.00034633,30]
[328391406,1717324476672,657.04132537,0.00034633,30]
[328391407,1717324477382,266.91949624,0.00034633,120]
[328391408,1717324479957,1338.55228647,0.00034633,120]
[328391409,1717324484378,884.51918423,0.00034633,30]
[328391410,1717324487201,1001.05467416,0.00034633,60]
[328391411,1717324490751,1490.06350442,0.00034633,30]
[328391412,1717324490786,196.61332722,0.00034633,30]
[328391413,1717324491422,914.38295698,0.00034633,30]
[328391414,1717324492053,165.54918859,0.00034633,120]
[328391415,1717324501649,1000.0,0.00013526,2]
[328391416,1717324501932,1000.0,0.00034633,30]
[328391417,1717324502317,1000.0,0.00034633,30]
[328391418,1717324503076,1000.0,0.00034633,30]
[328391419,1717324503502,1000.0,0.00034633,30]
[328391420,1717324504407,267.13673481,0.00034633,30]
[328391421,1717324504660,1000.0,0.00034633,30]
[328391422,1717324505788,1000.0,0.00034633,30]
[328391423,1717324506913,1000.0,0.00034633,30]
[328391424,1717324507508,331.69142049,0.00034633,30]
[328391425,1717324507656,250.0,0.00013526,2]
[328391426,1717324508048,1000.0,0.00034633,30]
[328391427,1717324509237,1000.0,0.00034633,30]
[328391428,1717324510360,1000.0,0.00034633,30]
[328391429,1717324511484,203.43468911,0.00034633,30]
[328391430,1717324513919,883.97674561,0.00034633,30]
[328391431,1717324513963,1000.0,0.00034633,30]
[328391432,1717324518971,1000.0,0.00034633,30]
[328391433,1717324520246,8613.98,0.00013544,2]
[328391434,1717324520367,234.72,0.00013544,2]
[328391435,1717324538262,1000.0,0.00034633,30]
[328391436,1717324540853,368.91342976,0.00034633,120]
[328391437,1717324543044,690.0,0.00034633,30]
[328391438,1717324551091,1000.0,0.00034633,60]
[328391439,1717324552108,231.96068886,0.00034633,120]
[328391440,1717324563922,1000.0,0.00034633,30]
[328391441,1717324572077,1037.0,0.00034633,30]
[328391442,1717324572540,843.4038331,0.00034633,120]
[328391443,1717324572926,153.88735773,0.00034633,120]
[328391444,1717324576732,1000.0,0.00034633,30]
[328391445,1717324577680,307.09517778,0.00034633,120]
[328391446,1717324577928,334.79050472,0.00034633,30]
[328391447,1717324581856,1806.93557419,0.00034633,120]
[328391448,1717324582723,1037.0,0.00034633,30]
[328391449,1717324584079,565.36770597,0.00034633,30]
[328391450,1717324585649,401.91138933,0.00034633,120]
[328391451,1717324585677,561.81391228,0.00034633,120]
[328391452,1717324585843,1367.68604693,0.00034633,120]
[328391453,1717324587637,1235.4157577,0.00034633,30]
[328391454,1717324589544,1000.0,0.00034633,30]
[328391455,1717324589932,1179.12517749,0.00034633,120]
[328391456,1717324593363,1037.0,0.00034633,30]
[328391457,1717324596441,361.5288218,0.00034633,120]
[328391458,1717324602370,1000.0,0.00034633,30]
[328391459,1717324604003,1037.0,0.00034633,30]
[328391460,1717324606436,267.34475397,0.00034633,120]
[328391461,1717324606496,700.65,0.00013499,2]
[328391462,1717324607343,268.87967614,0.00013601,2]
[328391463,1717324607394,841.07981127,0.00034633,30]
[328391464,1717324610278,155.0,0.00013601,2]
[328391465,1717324614637,1037.0,0.00034633,30]
[328391466,1717324615191,1000.0,0.00034633,30]
[328391467,1717324625319,1037.0,0.00034633,30]
[328391468,1717324625862,941.3036123,0.00034633,120]
[328391469,1717324628008,1000.0,0.00034633,60]
[328391470,1717324628085,192.24986138,0.00034633,30]
[328391471,1717324628587,2984.82800987,0.00034633,120]
[328391472,1717324629855,297.70768803,0.00034633,120]
[328391473,1717324630407,420.37254389,0.00034633,30]
[328391474,1717324631082,167.21126536,0.00034633,30]
[328391475,1717324631766,412.04741968,0.00034633,120]
[328391476,1717324631870,398.95884584,0.00034633,120]
[328391477,1717324631897,249.52101861,0.00034633,120]
[328391478,1717324631926,251.80911128,0.00034633,30]
[328391479,1717324632111,1570.62095202,0.00034633,30]
[328391480,1717324632138,329.19463172,0.00034633,120]
[328391481,1717324632217,895.5575038,0.00034633,30]
[328391482,1717324632242,1793.35653921,0.00034633,120]
[328391483,1717324632719,616.85986938,0.00034633,120]
[328391484,1717324633050,1214.01458614,0.00034633,30]
[328391485,1717324633520,1090.91277569,0.00034633,30]
[328391486,1717324633837,1974.82968165,0.00034633,120]
[328391487,1717324634080,1385.71798044,0.00034633,30]
[328391488,1717324634900,154.999998,0.00034633,30]
[328391489,1717324635046,1088.63398775,0.00034633,30]
[328391490,1717324635276,209.96963396,0.00034633,120]
[328391491,1717324635730,285.03709774,0.00034633,30]
[328391493,1717324635839,610.22050971,0.00034633,30]
[328391494,1717324635958,1037.0,0.00034633,30]
[328391495,1717324636324,300.86311193,0.00034633,30]
[328391496,1717324636497,238.90360888,0.00034633,120]
[328391497,1717324636624,1851.21395346,0.00034633,120]
[328391499,1717324637783,1020.68989935,0.00034633,120]
[328391500,1717324638010,631.65707151,0.00034633,30]
[328391501,1717324638569,6968.71880755,0.00034633,120]
[328391502,1717324639998,2000.0,0.00013346,3]
[328391503,1717324640834,1000.0,0.00034633,30]
[328391504,1717324642128,2005.08521167,0.00013601,2]
[328391505,1717324646678,1037.0,0.00034633,30]
[328391506,1717324653639,1000.0,0.00034633,30]
[328391507,1717324655093,605.01,0.00013538,2]
[328391508,1717324657459,1037.0,0.00034633,30]
[328391509,1717324666510,1000.0,0.00034633,30]
[328391510,1717324668092,1037.0,0.00034633,30]
[328391511,1717324673035,190.0,0.00034633,30]
[328391512,1717324673800,190.0,0.00034633,30]
[328391513,1717324674645,190.0,0.00034633,30]
[328391514,1717324676072,200.0,0.00034633,30]
[328391515,1717324676444,170.0,0.00034633,30]
[328391516,1717324678723,1037.0,0.00034633,30]
[328391517,1717324679319,1000.0,0.00034633,60]
[328391518,1717324689452,1037.0,0.00034633,30]
[328391519,1717324692032,160.45929932,0.00013502,2]
[328391520,1717324692129,1000.0,0.00034633,30]
[328391521,1717324698185,160.45929932,0.00013545,2]
[328391522,1717324700199,1037.0,0.00034633,30]
[328391523,1717324703955,160.45929932,0.00013588,2]
[328391524,1717324704955,1000.0,0.00034633,30]
[328391525,1717324709404,1000.0,0.00034633,30]
[328391526,1717324709737,1000.0,0.00034633,30]
[328391527,1717324710064,1000.0,0.00034633,30]
[328391528,1717324710713,1000.0,0.00034633,30]
[328391529,1717324710864,1037.0,0.00034633,30]
[328391530,1717324711096,1000.0,0.00034633,30]
[328391531,1717324711481,1000.0,0.00034633,30]
[328391532,1717324711903,1000.0,0.00034633,30]
[328391533,1717324712482,1000.0,0.00034633,30]
[328391534,1717324712799,1000.0,0.00034633,30]
[328391535,1717324713131,1660.924762,0.00034633,30]
[328391536,1717324717768,1000.0,0.00034633,60]
[328391537,1717324721552,1037.0,0.00034633,30]
[328391538,1717324730588,1000.0,0.00034634,60]
[328391539,1717324732259,1037.0,0.00034634,30]
[328391540,1717324737028,1129.33,0.00034634,60]
[328391541,1717324737297,1129.33,0.00034634,60]
[328391542,1717324737548,1129.33,0.00034634,60]
[328391543,1717324737801,1129.33,0.00034634,60]
[328391544,1717324738124,1129.33,0.00034634,60]
[328391545,1717324738375,1129.33,0.00034634,60]
[328391546,1717324738757,1129.33,0.00034634,60]
[328391547,1717324739017,1129.33,0.00034634,60]
[328391548,1717324739604,1129.33,0.00034634,60]
[328391549,1717324739922,1129.33,0.00034634,60]
[328391550,1717324740204,1129.33,0.00034634,60]
[328391551,1717324740494,1129.37427513,0.00034634,60]
[328391552,1717324743137,1037.0,0.00034634,30]
[328391553,1717324743385,1000.0,0.00034634,60]
[328391554,1717324753651,1037.0,0.00034634,30]
[328391555,1717324756204,1000.0,0.00034634,60]
[328391556,1717324764339,1037.0,0.00034634,30]
[328391557,1717324765656,914.82932772,0.00034634,30]
[328391558,1717324769044,1000.0,0.00034634,60]
[328391559,1717324774947,1037.0,0.00034634,30]
[328391560,1717324776063,663.73,0.00013488,2]
[328391561,1717324776281,663.73,0.00013492,2]
[328391562,1717324776504,663.73,0.00013495,2]
[328391563,1717324776738,663.73,0.00013499,2]
[328391564,1717324776941,663.73,0.00013502,2]
[328391565,1717324777155,663.73,0.00013506,2]
[328391566,1717324777377,663.73,0.0001351,2]
[328391567,1717324777583,663.73,0.00013513,2]
[328391568,1717324777977,663.73,0.00013517,2]
[328391569,1717324778191,663.73,0.0001352,2]
[328391570,1717324778394,663.73,0.00013524,2]
[328391571,1717324778612,663.73,0.00013527,2]
[328391572,1717324778855,663.73,0.00013531,2]
[328391573,1717324779085,663.73,0.00013534,2]
[328391574,1717324779494,663.73,0.00013538,2]
[328391575,1717324779740,663.73,0.00013542,2]
[328391576,1717324779963,663.73,0.00013545,2]
[328391577,1717324780176,663.73,0.00013549,2]
[328391578,1717324780399,663.73,0.00013552,2]
[328391579,1717324780621,663.73,0.00013556,2]
[328391580,1717324781857,1000.0,0.00034634,30]
[328391581,1717324785583,1037.0,0.00034634,30]
[328391582,1717324794682,1000.0,0.00034634,60]
[328391583,1717324796261,1037.0,0.00034634,30]
[328391584,1717324807031,1037.0,0.00034634,30]
[328391585,1717324807494,1000.0,0.00034634,60]
[328391586,1717324817841,1037.0,0.00034634,30]
[328391587,1717324820418,1000.0,0.00034634,30]
[328391588,1717324828475,1037.0,0.00034634,30]
[328391589,1717324833228,1000.0,0.00034634,60]
[328391590,1717324839209,1037.0,0.00034634,30]
[328391591,1717324839568,153.04,0.00013389,2]
[328391592,1717324846437,1000.0,0.00034634,30]
[328391593,1717324849924,1037.0,0.00034634,30]
[328391594,1717324859266,1000.0,0.00034634,120]
[328391595,1717324860698,1037.0,0.00034634,30]
[328391596,1717324866855,150.0,0.00013391,2]
[328391597,1717324871444,1037.0,0.00034634,30]
[328391598,1717324872096,1000.0,0.00034634,30]
[328391599,1717324876489,322.13439214,0.00034634,30]
[328391601,1717324882158,1098.49476925,0.00034634,30]
[328391602,1717324884921,1000.0,0.00034634,30]
[328391603,1717324897729,989.01,0.00034634,60]
[328391604,1717324960791,2000.0,0.00034634,30]
[328391605,1717324961225,2000.0,0.00034634,30]
[328391606,1717324961626,2000.0,0.00034634,30]
[328391607,1717324962255,2000.0,0.00034634,30]
[328391608,1717324962756,2000.0,0.00034634,30]
[328391609,1717324963191,2000.0,0.00034634,30]
[328391610,1717324963692,1040.6,0.00034634,30]
[328391611,1717324964290,2000.0,0.00034634,30]
[328391612,1717324964738,2000.0,0.00034634,30]
[328391613,1717324965314,2000.0,0.00034634,30]
[328391614,1717324965525,2000.0,0.00034634,30]
[328391615,1717324966522,2000.0,0.00034634,30]
[328391616,1717324967172,2000.0,0.00034634,30]
[328391617,1717324967641,1040.6,0.00034634,30]
[328391618,1717324994126,430.69,0.00012898,2]
[328391619,1717325015821,157.62,0.00029808,30]
[328391620,1717325023418,3631.39,0.00012898,2]
[328391621,1717325041136,250.0,0.00012898,2]
[328391622,1717325051620,200.0,0.00012898,2]
[328391623,1717325070850,451.52,0.0001098,2]
[328391624,1717325071053,451.52,0.00013244,2]
[328391625,1717325115574,2996.66636958,0.00013601,2]
[328391626,1717325142341,690.0,0.00034633,30]
[328391627,1717325150875,5742.32,0.00012892,2]
[328391628,1717325152547,250.0,0.00012892,2]
[328391629,1717325264137,190.0,0.00034633,30]
[328391630,1717325264862,190.0,0.00034633,30]
[328391636,1717325312156,150.0,0.00034633,30]
[328391646,1717325349197,1000.0,0.00034633,60]
[328391647,1717325349472,1000.0,0.00034633,60]
[328391648,1717325350105,1000.0,0.00034633,60]
[328391649,1717325350142,1000.0,0.00034633,60]
[328391650,1717325350400,1000.0,0.00034633,60]
[328391651,1717325350678,1000.0,0.00034633,60]
[328391652,1717325350940,609.77970258,0.00034633,60]
[328391653,1717325363278,175.89,0.0001289,2]
[328391654,1717325363465,175.89,0.00012923,2]
[328391655,1717325363685,175.89,0.00012955,2]
[328391666,1717325431770,-791.38159288,0.00013602,2]
[328391667,1717325431779,-209.19889504,0.00013603,2]
[328391668,1717325431788,-371.89,0.00013625,2]
[328391669,1717325431797,-371.89,0.00013662,2]
[328391670,1717325431806,-150.0,0.00013671,2]
[328391671,1717325431815,-150.0,0.00013686,2]
[328391672,1717325431825,-35441.05432682,0.00013687,2]
[328391673,1717325431834,-4438.46997973,0.00013696,2]
[328391674,1717325431843,-200.0,0.00013699,2]
[328391675,1717325431852,-413.52,0.00013699,2]
[328391676,1717325431861,-1853.99,0.00013699,2]
[328391677,1717325431871,-2833.03,0.00013699,2]
[328391678,1717325431880,-535.03,0.00013699,2]
[328391679,1717325431890,-288.21,0.00013699,2]
[328391680,1717325431899,-499.99,0.00013699,2]
[328391681,1717325431907,-288.03,0.00013699,2]
[328391682,1717325431916,-371.89,0.00013699,2]
[328391683,1717325431926,-371.89,0.00013737,2]
[328391684,1717325431935,-371.89,0.00013774,2]
[328391685,1717325431944,-9348.59390816,0.0001378,2]
[328391686,1717325431954,-199.08712146,0.00013791,2]
[328391687,1717325431963,-20239.87326193,0.000138,2]
[328391688,1717325431973,-17992.36793711,0.000138,2]
[328391689,1717325431982,-371.89,0.00013811,2]
[328391690,1717325431991,-371.89,0.00013849,2]
[328391691,1717325432000,-189.43873095,0.00013859,2]
[328391692,1717325432010,-604.96272,0.0001386,2]
[328391693,1717325432019,-371.89,0.00013886,2]
[328391694,1717325432029,-4248.76559074,0.000139,2]
[328391695,1717325432039,-704.49087272,0.000139,2]
[328391696,1717325432048,-175.64300596,0.000139,2]
[328391697,1717325432057,-371.89,0.00013924,2]
[328391698,1717325432066,-371.89,0.00013961,2]
[328391699,1717325432076,-1670.7084443,0.00013987,2]
[328391700,1717325432085,-271.65498901,0.00013987,2]
[328391701,1717325432094,-156.82169487,0.00013988,2]
[328391703,1717325432103,-269.95584114,0.00013988,2]
[328391705,1717325432113,-3979.7922157,0.00013989,2]
[328391707,1717325432121,-13950.5933318,0.00013989,2]
[328391709,1717325432130,-1258.5896875,0.00013989,2]
[328391711,1717325432140,-1537.3755796,0.00013989,2]
[328391713,1717325432149,-2565.7675381,0.00013989,2]
[328391715,1717325432157,-36065.8705641,0.00013989,2]
[328391717,1717325432166,-997.237767,0.00013989,2]
[328391719,1717325432176,-271.15,0.0001399,2]
[328391721,1717325432185,-188.47964544,0.0001399,2]
[328391723,1717325432194,-159.0456061,0.00013998,2]
[328391725,1717325432203,-300.14317843,0.00013998,2]
[328391727,1717325432212,-1265.11365737,0.00013998,2]
[328391729,1717325432222,-371.89,0.00013998,2]
[328391731,1717325432231,-2825.98409131,0.00013999,2]
[328391733,1717325432241,-2644.00835833,0.00013999,2]
[328391735,1717325432250,-723.13012267,0.00013999,2]
[328391737,1717325432259,-155.78676667,0.00013999,2]
[328391739,1717325432268,-848.89413655,0.00013999,2]
[328391741,1717325432277,-927.84008549,0.00013999,2]
[328391743,1717325432289,-155.48530727,0.00013999,2]
[328391745,1717325432298,-364.27737293,0.00013999,2]
[328391746,1717325432307,-155.22788613,0.00013999,2]
[328391748,1717325432316,-9369.34587387,0.00013999,2]
[328391751,1717325432326,-1497.14333897,0.00013999,2]
[328391753,1717325432336,-1898.32825842,0.00013999,2]
[328391755,1717325432345,-298.77190771,0.00013999,2]
[328391756,1717325432354,-1465.62018346,0.00013999,2]
[328391759,1717325432364,-167.97648504,0.00013999,2]
[328391760,1717325432373,-196.75989189,0.00013999,2]
[328391763,1717325432382,-1400.60780106,0.00013999,2]
[328391764,1717325432391,-453.17832734,0.00013999,2]
[328391766,1717325432400,-170.66220389,0.00013999,2]
[328391768,1717325432409,-321.83343734,0.00013999,2]
[328391770,1717325432419,-362.18308999,0.00013999,2]
[328391773,1717325432428,-1458.07555249,0.00013999,2]
[328391775,1717325432438,-151.0,0.00013999,2]
[328391776,1717325432447,-151.0,0.00013999,2]
[328391779,1717325432457,-151.0,0.00013999,2]
[328391780,1717325432466,-151.0,0.00013999,2]
[328391782,1717325432479,-151.0,0.00013999,2]
[328391784,1717325432488,-151.0,0.00013999,2]
[328391786,1717325432498,-151.0,0.00013999,2]
[328391788,1717325432507,-151.0,0.00013999,2]
[328391790,1717325432517,-151.0,0.00013999,2]
[328391792,1717325432526,-151.0,0.00013999,2]
[328391794,1717325432535,-151.0,0.00013999,2]
[328391796,1717325432545,-179.762654,0.00013999,2]
[328391798,1717325432557,-151.0,0.00013999,2]
[328391800,1717325432567,-151.0,0.00013999,2]
[328391802,1717325432576,-151.0,0.00013999,2]
[328391804,1717325432585,-151.0,0.00013999,2]
[328391806,1717325432595,-151.0,0.00013999,2]
[328391808,1717325432603,-151.0,0.00013999,2]
[328391810,1717325432612,-151.0,0.00013999,2]
[328391812,1717325432622,-151.0,0.00013999,2]
[328391814,1717325432631,-151.0,0.00013999,2]
[328391815,1717325432640,-158.776451,0.00013999,2]
[328391816,1717325432650,-151.0,0.00013999,2]
[328391817,1717325432659,-151.0,0.00013999,2]
[328391818,1717325432668,-151.0,0.00013999,2]
[328391819,1717325432677,-20236.72329532,0.00014,2]
[328391820,1717325432691,-9768.13277904,0.00014,2]
[328391821,1717325432714,-7088.79517537,0.00014,2]
[328391822,1717325432727,-2259.47975856,0.00014,2]
[328391823,1717325432738,-800.0,0.00014,2]
[328391824,1717325432749,-563.456,0.00014,2]
[328391825,1717325432760,-1452.08314633,0.00014,2]
[328391826,1717325432771,-52929.499295,0.00014,2]
[328391827,1717325432782,-582.92504737,0.00014,2]
[328391828,1717325432794,-1324.76351156,0.00014,2]
[328391830,1717325432809,-628.12349577,0.00014,2]
[328391832,1717325432820,-27305.67711024,0.00014,2]
[328391835,1717325432843,-571.61940899,0.00014,2]
[328391837,1717325432854,-909.67996557,0.00014,2]
[328391839,1717325432865,-521.36640746,0.00014,2]
[328391873,1717325437779,-25277.77502776,0.00014,2]
[328391874,1717325437791,-493.746,0.00014,2]
[328391875,1717325437886,-11692.79796911,0.00014,2]
[328391876,1717325437900,-715.7408201,0.00014,2]
[328391883,1717325440582,-7569.50879983,0.00014,2]
[328391884,1717325442012,-481.22492057,0.00013999,2]
[328391885,1717325442022,-1136.19300487,0.00014,2]
[328391886,1717325442033,-5022.6166701,0.00014,2]
[328391888,1717325442728,-2968.58612066,0.00014,2]
[328391889,1717325443453,-701.87350517,0.00013999,2]
[328391890,1717325443463,-2160.59620368,0.00014,2]
[328391891,1717325443478,-2189.09545768,0.00014,2]
[328391892,1717325443490,-4169.45745001,0.00014,2]
[328391893,1717325443501,-6838.11026215,0.00014,2]
[328391894,1717325443622,-9642.59950095,0.00014,2]
[328392023,1717325472652,1169.9717117,0.00012955,2]
[328392024,1717325483170,48092.99570075,0.00012955,2]
[328392026,1717325555084,157.62,0.00029808,30]
[328392027,1717325568432,2000.0,0.00034633,30]
[328392028,1717325568823,2000.0,0.00034633,30]
[328392029,1717325569415,2000.0,0.00034633,30]
[328392030,1717325569760,2000.0,0.00034633,30]
[328392031,1717325570137,2000.0,0.00034633,30]
[328392032,1717325570565,2000.0,0.00034633,30]
[328392033,1717325570919,1040.6,0.00034633,30]
[328392034,1717325654092,406.36,0.00011889,2]
[328392035,1717325744040,690.0,0.00034633,30]
[328392036,1717325772281,685.842551,0.0001354,2]
[328392037,1717325867796,190.0,0.00034633,30]
[328392038,1717325868363,189.0,0.00034633,30]
[328392039,1717325899183,410.74413779,0.000136,2]
[328392041,1717325928908,345.25694747,0.000136,2]
[328392042,1717325941452,2367.58913066,0.000136,2]
[328392043,1717326009429,345.25694747,0.000136,2]
[328392044,1717326023255,205.3803142,0.000136,2]
[328392046,1717326130904,157.62,0.00029808,30]
[328392047,1717326159683,2000.0,0.00034645,30]
[328392048,1717326160181,2000.0,0.00034645,30]
[328392049,1717326160512,2000.0,0.00034645,30]
[328392050,1717326160935,2000.0,0.00034645,30]
[328392051,1717326161280,348.4,0.00034645,30]
[328392052,1717326195534,386.04,0.00011838,2]
[328392053,1717326243716,3827.54,0.00013595,2]
[328392059,1717326349556,690.0,0.00034645,30]
[328392082,1717326462996,190.0,0.00034645,30]
[328392107,1717326623117,150.0,0.00013008,2]
[328392111,1717326632038,-250.0,0.00013665,2]
[328392113,1717326632048,-250.0,0.00013665,2]
[328392115,1717326632058,-12.08751055,0.00013699,2]
[328392116,1717326632215,-275.94248945,0.00013699,2]
[328392117,1717326632226,-31.89091055,0.00013738,2]
[328392118,1717326632238,-128.10908945,0.00013738,2]
[328392119,1717326632247,-122.02672843,0.00013744,2]
[328392141,1717326637943,-5453.37007591,0.00013744,2]
[328392142,1717326637952,-167.35,0.00013828,2]
[328392143,1717326637961,-504.1356,0.0001386,2]
[328392144,1717326637970,-167.35,0.00013866,2]
[328392145,1717326637979,-219.0,0.00013887,2]
[328392146,1717326637988,-150.0,0.00013887,2]
[328392147,1717326637997,-200.0,0.00013888,2]
[328392148,1717326638006,-499.99,0.00013889,2]
[328392149,1717326638015,-700.0,0.00013889,2]
[328392150,1717326638024,-680.41702152,0.00013898,2]